[Event "Titled Tuesday Blitz November 29 Early 2022"]
[White "Melikyan, Gnel"]
[Black "Tarasova, Viktoriya"]
[WhiteFideId "54109990"]
[BlackFideId "4175840"]
[WhiteElo "2138"]
[BlackElo "2182"]
[Result "0-1"]
[Round "02"]
[TimeControl "180+1"]
[Date "2022.11.30"]
[WhiteClock "0:00:03"]
[BlackClock "0:00:12"]

1. d4 {[%clk 0:02:58]}  Nf6 {[%clk 0:02:59]} 2. Bf4 {[%clk 0:02:57]}  d5 {[%clk 0:02:59]} 3. e3 {[%clk 0:02:57]}  c5 {[%clk 0:02:59]} 4. c3 {[%clk 0:02:57]}  e6 {[%clk 0:02:58]} 5. Nf3 {[%clk 0:02:57]}  Bd6 {[%clk 0:02:58]} 6. Bxd6 {[%clk 0:02:56]}  Qxd6 {[%clk 0:02:58]} 7. Nbd2 {[%clk 0:02:57]}  O-O {[%clk 0:02:57]} 8. Bd3 {[%clk 0:02:57]}  Nc6 {[%clk 0:02:57]} 9. O-O {[%clk 0:02:57]}  e5 {[%clk 0:02:58]} 10. Nxe5 {[%clk 0:02:56]}  Nxe5 {[%clk 0:02:58]} 11. dxe5 {[%clk 0:02:57]}  Qxe5 {[%clk 0:02:58]} 12. Qf3 {[%clk 0:02:55]}  Rd8 {[%clk 0:02:52]} 13. Qg3 {[%clk 0:02:48]}  Qxg3 {[%clk 0:02:49]} 14. hxg3 {[%clk 0:02:48]}  Be6 {[%clk 0:02:50]} 15. Rfd1 {[%clk 0:02:45]}  a6 {[%clk 0:02:35]} 16. a4 {[%clk 0:02:42]}  Kf8 {[%clk 0:02:34]} 17. a5 {[%clk 0:02:42]}  Ke7 {[%clk 0:02:35]} 18. b4 {[%clk 0:02:32]}  cxb4 {[%clk 0:02:25]} 19. cxb4 {[%clk 0:02:31]}  Rac8 {[%clk 0:02:25]} 20. Nb3 {[%clk 0:02:26]}  Rc3 {[%clk 0:02:11]} 21. Nd4 {[%clk 0:02:15]}  Rdc8 {[%clk 0:02:11]} 22. b5 {[%clk 0:02:11]}  axb5 {[%clk 0:02:10]} 23. Nxb5 {[%clk 0:02:07]}  R3c5 {[%clk 0:02:07]} 24. Rdb1 {[%clk 0:02:04]}  Bd7 {[%clk 0:02:02]} 25. Nd4 {[%clk 0:02:02]}  R8c7 {[%clk 0:01:53]} 26. Kf1 {[%clk 0:01:32]}  g6 {[%clk 0:01:52]} 27. Ke1 {[%clk 0:01:32]}  h5 {[%clk 0:01:51]} 28. f3 {[%clk 0:01:30]}  Ne8 {[%clk 0:01:45]} 29. Kd2 {[%clk 0:01:23]}  Nd6 {[%clk 0:01:45]} 30. Rb4 {[%clk 0:01:16]}  Rc8 {[%clk 0:01:33]} 31. Rb6 {[%clk 0:00:45]}  Ra8 {[%clk 0:01:20]} 32. a6 {[%clk 0:00:41]}  bxa6 {[%clk 0:01:16]} 33. Raxa6 {[%clk 0:00:41]}  Rxa6 {[%clk 0:01:15]} 34. Rxa6 {[%clk 0:00:38]}  Rc7 {[%clk 0:01:04]} 35. Ra5 {[%clk 0:00:33]}  Be6 {[%clk 0:01:02]} 36. Ra7 {[%clk 0:00:17]}  Rxa7 {[%clk 0:00:57]} 37. Nc6+ {[%clk 0:00:17]}  Kd7 {[%clk 0:00:55]} 38. Nxa7 {[%clk 0:00:17]}  Kc7 {[%clk 0:00:55]} 39. Kc3 {[%clk 0:00:14]}  Kb6 {[%clk 0:00:53]} 40. Kd4 {[%clk 0:00:12]}  Kxa7 {[%clk 0:00:51]} 41. Ke5 {[%clk 0:00:13]}  Nc4+ {[%clk 0:00:50]} 42. Kd4 {[%clk 0:00:12]}  Nb2 {[%clk 0:00:38]} 43. Be2 {[%clk 0:00:08]}  Kb7 {[%clk 0:00:35]} 44. e4 {[%clk 0:00:04]}  dxe4 {[%clk 0:00:34]} 45. fxe4 {[%clk 0:00:04]}  Kc6 {[%clk 0:00:31]} 46. Ke5 {[%clk 0:00:03]}  Nc4+ {[%clk 0:00:25]} 47. Kf6 {[%clk 0:00:04]}  Ne3 {[%clk 0:00:25]} 48. Bf3 {[%clk 0:00:04]}  Kc5 {[%clk 0:00:21]} 49. Ke5 {[%clk 0:00:02]}  Kc4 {[%clk 0:00:20]} 50. Kf6 {[%clk 0:00:02]}  Kd3 {[%clk 0:00:20]} 51. e5 {[%clk 0:00:02]}  Kd2 {[%clk 0:00:18]} 52. Bc6 {[%clk 0:00:03]}  Ke1 {[%clk 0:00:15]} 53. Be8 {[%clk 0:00:03]}  Nd5+ {[%clk 0:00:13]} 54. Kg5 {[%clk 0:00:04]}  Kf2 {[%clk 0:00:12]} 55. g4 {[%clk 0:00:03]}  hxg4 {[%clk 0:00:12]} 56. Bxf7 {[%clk 0:00:02]}  Bxf7 {[%clk 0:00:12]} 57. e6 {[%clk 0:00:03]}  Bxe6 {[%clk 0:00:12]} 0-1


[Site "https://www.chess.com"]

[Event "Titled Tuesday Blitz November 29 Early 2022"]
[White "Mika, Tomasz"]
[Black "Kovacevic, Radmila"]
[WhiteFideId "1132970"]
[BlackFideId "933171"]
[WhiteElo "2126"]
[BlackElo "2208"]
[Result "1-0"]
[Round "02"]
[TimeControl "180+1"]
[Date "2022.11.30"]
[WhiteClock "0:00:15"]
[BlackClock "0:00:17"]

1. Nf3 {[%clk 0:03:00]}  c5 {[%clk 0:02:59]} 2. c4 {[%clk 0:03:01]}  Nc6 {[%clk 0:02:59]} 3. Nc3 {[%clk 0:03:01]}  g6 {[%clk 0:02:58]} 4. g3 {[%clk 0:03:01]}  Bg7 {[%clk 0:02:58]} 5. Bg2 {[%clk 0:03:01]}  e5 {[%clk 0:02:54]} 6. O-O {[%clk 0:02:55]}  f5 {[%clk 0:02:54]} 7. a3 {[%clk 0:02:51]}  Nge7 {[%clk 0:02:50]} 8. b4 {[%clk 0:02:50]}  cxb4 {[%clk 0:02:49]} 9. axb4 {[%clk 0:02:49]}  Nxb4 {[%clk 0:02:50]} 10. Ba3 {[%clk 0:02:49]}  Nbc6 {[%clk 0:02:48]} 11. Nb5 {[%clk 0:02:46]}  O-O {[%clk 0:02:43]} 12. Bd6 {[%clk 0:02:39]}  a6 {[%clk 0:02:35]} 13. Nc7 {[%clk 0:02:39]}  Ra7 {[%clk 0:02:32]} 14. Ra2 {[%clk 0:02:37]}  h6 {[%clk 0:02:26]} 15. Nh4 {[%clk 0:02:32]}  Kh7 {[%clk 0:02:21]} 16. e3 {[%clk 0:02:29]}  Rf6 {[%clk 0:02:13]} 17. c5 {[%clk 0:02:24]}  Nb4 {[%clk 0:02:07]} 18. Ra4 {[%clk 0:02:07]}  Nbc6 {[%clk 0:01:54]} 19. d4 {[%clk 0:02:02]}  e4 {[%clk 0:01:53]} 20. d5 {[%clk 0:01:59]}  Nb8 {[%clk 0:01:46]} 21. g4 {[%clk 0:01:41]}  Ng8 {[%clk 0:01:19]} 22. Be5 {[%clk 0:00:57]}  Rf7 {[%clk 0:01:08]} 23. Bg3 {[%clk 0:00:42]}  Ne7 {[%clk 0:00:30]} 24. gxf5 {[%clk 0:00:40]}  g5 {[%clk 0:00:22]} 25. Ng6 {[%clk 0:00:27]}  Nxf5 {[%clk 0:00:19]} 26. Ne5 {[%clk 0:00:26]}  Rf8 {[%clk 0:00:14]} 27. Bxe4 {[%clk 0:00:18]}  Qxc7 {[%clk 0:00:12]} 28. Bxf5+ {[%clk 0:00:18]}  Rxf5 {[%clk 0:00:12]} 29. Nc6 {[%clk 0:00:19]}  Be5 {[%clk 0:00:09]} 30. Qd3 {[%clk 0:00:15]}  d6 {[%clk 0:00:08]} 31. cxd6 {[%clk 0:00:15]}  Qxd6 {[%clk 0:00:07]} 32. Bxe5 {[%clk 0:00:12]}  Qg6 {[%clk 0:00:07]} 33. Nxa7 {[%clk 0:00:09]}  Rxe5 {[%clk 0:00:06]} 34. Qxg6+ {[%clk 0:00:08]}  Kxg6 {[%clk 0:00:07]} 35. Nxc8 {[%clk 0:00:09]}  Nd7 {[%clk 0:00:07]} 36. d6 {[%clk 0:00:08]}  Nf6 {[%clk 0:00:07]} 37. Ne7+ {[%clk 0:00:08]}  Kf7 {[%clk 0:00:06]} 38. Rc4 {[%clk 0:00:08]}  Nd5 {[%clk 0:00:06]} 39. Rc5 {[%clk 0:00:07]}  Ke6 {[%clk 0:00:06]} 40. Rxd5 {[%clk 0:00:07]}  Rxd5 {[%clk 0:00:06]} 41. Nxd5 {[%clk 0:00:08]}  Kxd6 {[%clk 0:00:07]} 42. Nf6 {[%clk 0:00:07]}  b5 {[%clk 0:00:07]} 43. Ng4 {[%clk 0:00:08]}  h5 {[%clk 0:00:07]} 44. Nf6 {[%clk 0:00:08]}  Ke5 {[%clk 0:00:07]} 45. Nxh5 {[%clk 0:00:08]}  Ke4 {[%clk 0:00:08]} 46. Ra1 {[%clk 0:00:08]}  b4 {[%clk 0:00:07]} 47. Rxa6 {[%clk 0:00:09]}  Kd3 {[%clk 0:00:06]} 48. Rb6 {[%clk 0:00:10]}  Kc3 {[%clk 0:00:07]} 49. Rxb4 {[%clk 0:00:10]}  Kxb4 {[%clk 0:00:08]} 50. f4 {[%clk 0:00:10]}  Kc5 {[%clk 0:00:09]} 51. fxg5 {[%clk 0:00:10]}  Kd5 {[%clk 0:00:10]} 52. g6 {[%clk 0:00:11]}  Ke6 {[%clk 0:00:10]} 53. g7 {[%clk 0:00:12]}  Kf7 {[%clk 0:00:10]} 54. Kf2 {[%clk 0:00:12]}  Kg8 {[%clk 0:00:11]} 55. Kf3 {[%clk 0:00:13]}  Kh7 {[%clk 0:00:12]} 56. Kf4 {[%clk 0:00:13]}  Kg8 {[%clk 0:00:13]} 57. Kf5 {[%clk 0:00:14]}  Kh7 {[%clk 0:00:14]} 58. e4 {[%clk 0:00:14]}  Kg8 {[%clk 0:00:15]} 59. e5 {[%clk 0:00:15]}  Kh7 {[%clk 0:00:15]} 60. e6 {[%clk 0:00:15]}  Kg8 {[%clk 0:00:16]} 61. h3 {[%clk 0:00:15]}  Kh7 {[%clk 0:00:16]} 62. h4 {[%clk 0:00:15]}  Kh6 {[%clk 0:00:17]} 63. g8=Q {[%clk 0:00:14]}  Kxh5 {[%clk 0:00:17]} 64. Qh8# {[%clk 0:00:15]} 1-0


[Site "https://www.chess.com"]

[Event "Titled Tuesday Blitz November 29 Early 2022"]
[White "Miszler, Levente"]
[Black "Zemlyanskii, Ivan"]
[WhiteFideId "763276"]
[BlackFideId "24249971"]
[WhiteElo "2176"]
[BlackElo "2107"]
[Result "0-1"]
[Round "02"]
[TimeControl "180+1"]
[Date "2022.11.30"]
[WhiteClock "0:00:54"]
[BlackClock "0:00:49"]

1. Nf3 {[%clk 0:02:59]}  d5 {[%clk 0:03:00]} 2. c4 {[%clk 0:02:59]}  d4 {[%clk 0:03:00]} 3. e3 {[%clk 0:02:58]}  Nc6 {[%clk 0:02:53]} 4. exd4 {[%clk 0:02:58]}  Nxd4 {[%clk 0:02:52]} 5. Nxd4 {[%clk 0:02:59]}  Qxd4 {[%clk 0:02:53]} 6. Nc3 {[%clk 0:02:59]}  Nf6 {[%clk 0:02:49]} 7. d3 {[%clk 0:02:57]}  e5 {[%clk 0:02:48]} 8. Be3 {[%clk 0:02:57]}  Qd8 {[%clk 0:02:47]} 9. d4 {[%clk 0:02:55]}  Ng4 {[%clk 0:02:47]} 10. Be2 {[%clk 0:02:52]}  Nxe3 {[%clk 0:02:46]} 11. fxe3 {[%clk 0:02:53]}  Bd6 {[%clk 0:02:30]} 12. O-O {[%clk 0:02:49]}  O-O {[%clk 0:02:29]} 13. Ne4 {[%clk 0:02:47]}  exd4 {[%clk 0:02:13]} 14. Nxd6 {[%clk 0:02:46]}  Qxd6 {[%clk 0:02:14]} 15. exd4 {[%clk 0:02:46]}  Rd8 {[%clk 0:02:08]} 16. d5 {[%clk 0:02:45]}  c6 {[%clk 0:02:04]} 17. dxc6 {[%clk 0:02:44]}  Qc5+ {[%clk 0:02:02]} 18. Kh1 {[%clk 0:02:43]}  Rxd1 {[%clk 0:02:01]} 19. Raxd1 {[%clk 0:02:43]}  Be6 {[%clk 0:01:56]} 20. cxb7 {[%clk 0:02:42]}  Rb8 {[%clk 0:01:57]} 21. Bf3 {[%clk 0:02:40]}  g6 {[%clk 0:01:57]} 22. b3 {[%clk 0:02:37]}  Qb6 {[%clk 0:01:46]} 23. c5 {[%clk 0:02:30]}  Qxc5 {[%clk 0:01:42]} 24. Rc1 {[%clk 0:02:26]}  Qb6 {[%clk 0:01:42]} 25. Rc6 {[%clk 0:02:17]}  Qb4 {[%clk 0:01:41]} 26. Rc7 {[%clk 0:02:14]}  Qf4 {[%clk 0:01:18]} 27. Rfc1 {[%clk 0:02:02]}  Kg7 {[%clk 0:01:13]} 28. a4 {[%clk 0:01:40]}  a5 {[%clk 0:01:06]} 29. R1c6 {[%clk 0:01:24]}  Bd5 {[%clk 0:00:53]} 30. Rc3 {[%clk 0:00:54]}  Bxb7 {[%clk 0:00:49]} 0-1


[Site "https://www.chess.com"]

[Event "Titled Tuesday Blitz November 29 Early 2022"]
[White "Mohammed, Zozek Salah Mohammed"]
[Black "Floresvillar Gonzalez, Luis Migu"]
[WhiteFideId "4803361"]
[BlackFideId "5100542"]
[WhiteElo "2199"]
[BlackElo "2040"]
[Result "1-0"]
[Round "02"]
[TimeControl "180+1"]
[Date "2022.11.30"]
[WhiteClock "0:01:29"]
[BlackClock "0:00:49"]

1. d4 {[%clk 0:03:00]}  Nf6 {[%clk 0:02:52]} 2. c4 {[%clk 0:03:00]}  e5 {[%clk 0:02:32]} 3. Nf3 {[%clk 0:03:00]}  exd4 {[%clk 0:02:30]} 4. Nxd4 {[%clk 0:02:59]}  Bc5 {[%clk 0:02:28]} 5. g3 {[%clk 0:02:55]}  O-O {[%clk 0:02:27]} 6. Bg2 {[%clk 0:02:54]}  Re8 {[%clk 0:02:22]} 7. Nc3 {[%clk 0:02:51]}  a5 {[%clk 0:02:15]} 8. O-O {[%clk 0:02:48]}  Ra6 {[%clk 0:02:13]} 9. Bg5 {[%clk 0:02:39]}  h6 {[%clk 0:02:12]} 10. Bf4 {[%clk 0:02:37]}  Bxd4 {[%clk 0:02:06]} 11. Qxd4 {[%clk 0:02:36]}  Rae6 {[%clk 0:02:06]} 12. Nb5 {[%clk 0:01:54]}  Nc6 {[%clk 0:01:57]} 13. Qc3 {[%clk 0:01:50]}  d6 {[%clk 0:01:54]} 14. Bf3 {[%clk 0:01:45]}  Ne5 {[%clk 0:01:15]} 15. Bd5 {[%clk 0:01:38]}  R6e7 {[%clk 0:01:00]} 16. Bg2 {[%clk 0:01:37]}  c6 {[%clk 0:00:55]} 17. Nd4 {[%clk 0:01:33]}  Bg4 {[%clk 0:00:49]} 18. f3 {[%clk 0:01:29]} 1-0


[Site "https://www.chess.com"]

[Event "Titled Tuesday Blitz November 29 Early 2022"]
[White "Nepo"]
[Black "Devaev, Alexander"]
[BlackFideId "4169395"]
[WhiteElo "2129"]
[BlackElo "2225"]
[Result "0-1"]
[Round "02"]
[TimeControl "180+1"]
[Date "2022.11.30"]
[WhiteClock "0:00:11"]
[BlackClock "0:00:36"]

1. e4 {[%clk 0:03:00]}  c6 {[%clk 0:03:00]} 2. d4 {[%clk 0:02:57]}  d5 {[%clk 0:03:00]} 3. Nc3 {[%clk 0:02:55]}  dxe4 {[%clk 0:03:00]} 4. Nxe4 {[%clk 0:02:55]}  Bf5 {[%clk 0:03:01]} 5. Qf3 {[%clk 0:02:55]}  Bg6 {[%clk 0:03:01]} 6. Ne2 {[%clk 0:02:53]}  Bxe4 {[%clk 0:02:58]} 7. Qxe4 {[%clk 0:02:53]}  Nf6 {[%clk 0:02:59]} 8. Qf3 {[%clk 0:02:51]}  e6 {[%clk 0:02:59]} 9. c3 {[%clk 0:02:51]}  Bd6 {[%clk 0:02:58]} 10. Ng3 {[%clk 0:02:51]}  Nbd7 {[%clk 0:02:58]} 11. Bd3 {[%clk 0:02:51]}  Qc7 {[%clk 0:02:58]} 12. O-O {[%clk 0:02:51]}  h5 {[%clk 0:02:51]} 13. h3 {[%clk 0:02:51]}  O-O-O {[%clk 0:02:45]} 14. Ne4 {[%clk 0:02:46]}  Nxe4 {[%clk 0:02:41]} 15. Bxe4 {[%clk 0:02:45]}  Rdg8 {[%clk 0:02:35]} 16. b4 {[%clk 0:02:44]}  g5 {[%clk 0:02:33]} 17. Qe2 {[%clk 0:02:09]}  g4 {[%clk 0:01:44]} 18. h4 {[%clk 0:02:06]}  Qd8 {[%clk 0:01:32]} 19. b5 {[%clk 0:01:46]}  c5 {[%clk 0:01:12]} 20. dxc5 {[%clk 0:00:51]}  Nxc5 {[%clk 0:01:10]} 21. Rd1 {[%clk 0:00:50]}  Nxe4 {[%clk 0:00:49]} 22. Qxe4 {[%clk 0:00:51]}  Bh2+ {[%clk 0:00:49]} 23. Kxh2 {[%clk 0:00:47]}  Qxd1 {[%clk 0:00:47]} 24. Qc4+ {[%clk 0:00:45]}  Kd7 {[%clk 0:00:42]} 25. Bf4 {[%clk 0:00:20]}  Qd5 {[%clk 0:00:42]} 26. Qc7+ {[%clk 0:00:19]}  Ke8 {[%clk 0:00:43]} 27. c4 {[%clk 0:00:15]}  Qd7 {[%clk 0:00:37]} 28. Qb8+ {[%clk 0:00:14]}  Ke7 {[%clk 0:00:38]} 29. Qe5 {[%clk 0:00:14]}  f6 {[%clk 0:00:38]} 30. Qc5+ {[%clk 0:00:14]}  Kf7 {[%clk 0:00:38]} 31. Rd1 {[%clk 0:00:12]}  Qxd1 {[%clk 0:00:35]} 32. Qc7+ {[%clk 0:00:11]}  Kg6 {[%clk 0:00:36]} 0-1


[Site "https://www.chess.com"]

[Event "Titled Tuesday Blitz November 29 Early 2022"]
[White "Osinovsky, Stepan"]
[Black "Ankudinova, Yelena"]
[WhiteFideId "4157354"]
[BlackFideId "13702114"]
[WhiteElo "2222"]
[BlackElo "1930"]
[Result "1-0"]
[Round "02"]
[TimeControl "180+1"]
[Date "2022.11.30"]
[WhiteClock "0:01:11"]
[BlackClock "0:00:29"]

1. e4 {[%clk 0:03:00]}  Nf6 {[%clk 0:02:56]} 2. e5 {[%clk 0:03:00]}  Nd5 {[%clk 0:02:56]} 3. c4 {[%clk 0:03:00]}  Nb6 {[%clk 0:02:55]} 4. c5 {[%clk 0:03:01]}  Nd5 {[%clk 0:02:54]} 5. Nc3 {[%clk 0:03:02]}  e6 {[%clk 0:02:53]} 6. Qg4 {[%clk 0:03:02]}  b6 {[%clk 0:02:50]} 7. Nf3 {[%clk 0:02:42]}  bxc5 {[%clk 0:02:43]} 8. Bc4 {[%clk 0:02:42]}  f5 {[%clk 0:02:37]} 9. exf6 {[%clk 0:02:20]}  Nxf6 {[%clk 0:02:36]} 10. Qg3 {[%clk 0:02:20]}  Nc6 {[%clk 0:02:31]} 11. O-O {[%clk 0:02:19]}  d5 {[%clk 0:02:23]} 12. Bb5 {[%clk 0:02:15]}  Bd7 {[%clk 0:02:18]} 13. Re1 {[%clk 0:02:14]}  Bd6 {[%clk 0:02:02]} 14. Qxg7 {[%clk 0:01:56]}  Rg8 {[%clk 0:02:02]} 15. Rxe6+ {[%clk 0:01:47]}  Be7 {[%clk 0:01:52]} 16. Qxf6 {[%clk 0:01:41]}  Rg6 {[%clk 0:01:37]} 17. Qh8+ {[%clk 0:01:34]}  Kf7 {[%clk 0:01:32]} 18. Qxh7+ {[%clk 0:01:29]}  Rg7 {[%clk 0:01:30]} 19. Qf5+ {[%clk 0:01:23]}  Bf6 {[%clk 0:00:57]} 20. Rxf6+ {[%clk 0:01:22]}  Qxf6 {[%clk 0:00:30]} 21. Qxd7+ {[%clk 0:01:21]}  Ne7 {[%clk 0:00:29]} 22. Nxd5 {[%clk 0:01:11]} 1-0


[Site "https://www.chess.com"]

[Event "Titled Tuesday Blitz November 29 Early 2022"]
[White "Ozen, Bahadir"]
[Black "Estrada Nieto, Julian"]
[WhiteFideId "6337058"]
[BlackFideId "5101018"]
[WhiteElo "2503"]
[BlackElo "2221"]
[Result "1/2-1/2"]
[Round "02"]
[TimeControl "180+1"]
[Date "2022.11.30"]
[WhiteClock "0:01:52"]
[BlackClock "0:01:59"]

1. g3 {[%clk 0:03:00]}  d5 {[%clk 0:02:59]} 2. Nf3 {[%clk 0:03:00]}  Nf6 {[%clk 0:02:59]} 3. Bg2 {[%clk 0:03:01]}  c6 {[%clk 0:02:59]} 4. O-O {[%clk 0:03:01]}  Bf5 {[%clk 0:03:00]} 5. d3 {[%clk 0:03:01]}  h6 {[%clk 0:02:58]} 6. c4 {[%clk 0:02:58]}  e6 {[%clk 0:02:56]} 7. b3 {[%clk 0:02:50]}  Nbd7 {[%clk 0:02:55]} 8. Bb2 {[%clk 0:02:51]}  Be7 {[%clk 0:02:50]} 9. Nbd2 {[%clk 0:02:51]}  O-O {[%clk 0:02:49]} 10. a3 {[%clk 0:02:51]}  a5 {[%clk 0:02:46]} 11. Qc2 {[%clk 0:02:50]}  Bh7 {[%clk 0:02:46]} 12. Bc3 {[%clk 0:02:50]}  Re8 {[%clk 0:02:45]} 13. b4 {[%clk 0:02:39]}  axb4 {[%clk 0:02:37]} 14. axb4 {[%clk 0:02:40]}  Qc7 {[%clk 0:02:37]} 15. Qb2 {[%clk 0:02:38]}  Bd6 {[%clk 0:02:31]} 16. c5 {[%clk 0:02:29]}  Bf8 {[%clk 0:02:30]} 17. Ne5 {[%clk 0:02:28]}  b6 {[%clk 0:02:15]} 18. cxb6 {[%clk 0:02:23]}  Qxb6 {[%clk 0:02:15]} 19. Nxd7 {[%clk 0:02:13]}  Nxd7 {[%clk 0:02:15]} 20. Nf3 {[%clk 0:02:06]}  Qb7 {[%clk 0:02:03]} 21. Rfc1 {[%clk 0:01:58]}  c5 {[%clk 0:02:02]} 22. bxc5 {[%clk 0:01:58]}  Qxb2 {[%clk 0:02:00]} 23. Bxb2 {[%clk 0:01:58]}  Nxc5 {[%clk 0:01:59]} 24. Nd2 {[%clk 0:01:52]} 1/2-1/2


[Site "https://www.chess.com"]

[Event "Titled Tuesday Blitz November 29 Early 2022"]
[White "Palacio,Igor Da Paz"]
[Black "Rangel, Daniel"]
[WhiteFideId "2121140"]
[BlackFideId "2124475"]
[WhiteElo "2126"]
[BlackElo "2225"]
[Result "1-0"]
[Round "02"]
[TimeControl "180+1"]
[Date "2022.11.30"]
[WhiteClock "0:00:01"]
[BlackClock "0:00:03"]

1. e4 {[%clk 0:03:00]}  c5 {[%clk 0:02:58]} 2. Nc3 {[%clk 0:03:00]}  g6 {[%clk 0:02:56]} 3. g3 {[%clk 0:03:00]}  Bg7 {[%clk 0:02:56]} 4. Bg2 {[%clk 0:03:00]}  Nc6 {[%clk 0:02:57]} 5. d3 {[%clk 0:03:01]}  d6 {[%clk 0:02:57]} 6. f4 {[%clk 0:03:01]}  e6 {[%clk 0:02:57]} 7. Nf3 {[%clk 0:03:01]}  Nge7 {[%clk 0:02:57]} 8. O-O {[%clk 0:03:01]}  Rb8 {[%clk 0:02:56]} 9. Rb1 {[%clk 0:02:54]}  b5 {[%clk 0:02:55]} 10. a3 {[%clk 0:02:54]}  a5 {[%clk 0:02:55]} 11. Be3 {[%clk 0:02:54]}  Nd4 {[%clk 0:02:53]} 12. e5 {[%clk 0:02:42]}  Nef5 {[%clk 0:02:46]} 13. Bf2 {[%clk 0:02:37]}  b4 {[%clk 0:02:46]} 14. axb4 {[%clk 0:02:32]}  axb4 {[%clk 0:02:42]} 15. Ne4 {[%clk 0:02:29]}  dxe5 {[%clk 0:02:39]} 16. Nxe5 {[%clk 0:02:21]}  Qc7 {[%clk 0:02:27]} 17. c3 {[%clk 0:01:46]}  Nb5 {[%clk 0:01:36]} 18. Bxc5 {[%clk 0:01:33]}  Nbd6 {[%clk 0:01:35]} 19. Qa4+ {[%clk 0:01:20]}  Kf8 {[%clk 0:01:18]} 20. Nc4 {[%clk 0:01:08]}  Bd7 {[%clk 0:01:08]} 21. Qd1 {[%clk 0:00:45]}  Kg8 {[%clk 0:00:46]} 22. Ncxd6 {[%clk 0:00:43]}  Bf8 {[%clk 0:00:37]} 23. Nxf5 {[%clk 0:00:17]}  Bxc5+ {[%clk 0:00:33]} 24. Nd4 {[%clk 0:00:17]}  Qa7 {[%clk 0:00:24]} 25. Nf6+ {[%clk 0:00:15]}  Kg7 {[%clk 0:00:22]} 26. Nxd7 {[%clk 0:00:16]}  Qxd7 {[%clk 0:00:22]} 27. Kh1 {[%clk 0:00:11]}  Rhd8 {[%clk 0:00:20]} 28. Qe2 {[%clk 0:00:10]}  Be7 {[%clk 0:00:16]} 29. Rbd1 {[%clk 0:00:09]}  Bf6 {[%clk 0:00:16]} 30. Qc2 {[%clk 0:00:07]}  Rdc8 {[%clk 0:00:15]} 31. Qf2 {[%clk 0:00:05]}  bxc3 {[%clk 0:00:15]} 32. bxc3 {[%clk 0:00:06]}  Rxc3 {[%clk 0:00:14]} 33. Nf3 {[%clk 0:00:06]}  Rxd3 {[%clk 0:00:13]} 34. Rxd3 {[%clk 0:00:06]}  Qxd3 {[%clk 0:00:14]} 35. Ne5 {[%clk 0:00:06]}  Qc3 {[%clk 0:00:13]} 36. Re1 {[%clk 0:00:03]}  Rb2 {[%clk 0:00:11]} 37. Qg1 {[%clk 0:00:03]}  h5 {[%clk 0:00:10]} 38. Nf3 {[%clk 0:00:03]}  Be7 {[%clk 0:00:06]} 39. h4 {[%clk 0:00:02]}  Bc5 {[%clk 0:00:06]} 40. Qh2 {[%clk 0:00:02]}  Bf2 {[%clk 0:00:04]} 41. Rf1 {[%clk 0:00:02]}  Qe3 {[%clk 0:00:03]} 42. Ng5 {[%clk 0:00:01]}  Bxg3 {[%clk 0:00:03]} 43. Qh3 {[%clk 0:00:01]} 1-0


[Site "https://www.chess.com"]